bitfinex-derivatives/quotes_ETHF0:USTF0_20251107
["timestamp","ask_amount","ask_price","bid_price","bid_amount"]
[1762476550149,0.48646,3332.0,3331.8,0.48649]
[1762476550356,3.32786,3332.3,3331.9,0.48646]
[1762476550554,0.48938544,3332.1,3331.9,0.48646]
[1762476550751,0.00293544,3332.1,3331.5,3.2078]
[1762476551050,0.00293544,3332.1,3331.9,0.48647]
[1762476551751,0.48647,3331.9,3331.5,3.2078]
[1762476552051,0.4865,3331.7,3331.1,3.2078]
[1762476552251,0.12006,3332.0,3331.1,3.2078]
[1762476552552,0.4866,3331.1,3331.0,0.4866]
[1762476552751,0.48661,3331.0,3330.9,0.48661]
[1762476553155,3.2078,3331.1,3330.5,0.00383939]
[1762476553354,0.48661,3331.0,3330.5,0.00383939]
[1762476553553,0.12010001,3331.3,3330.7,3.2078]
[1762476553752,0.48659,3331.1,3331.0,0.2365]
[1762476553950,0.48663,3330.9,3330.7,3.2078]
[1762476554365,0.48666,3330.7,3330.5,0.00383939]
[1762476554852,3.3538,3331.3,3330.7,0.48664]
[1762476555054,3.3538,3331.3,3330.6,0.48665]
[1762476555250,0.48665,3330.8,3330.7,0.48665]
[1762476555451,0.12008,3331.2,3330.5,0.00383939]
[1762476555652,3.3538,3331.3,3330.5,0.00383939]
[1762476555856,0.48666,3330.6,3330.5,0.49051939]
[1762476556156,0.12008,3331.2,3330.5,0.00383939]
[1762476556360,0.48661,3331.0,3330.9,0.48662]
[1762476556560,0.12008,3331.0,3330.9,0.48662]
[1762476556747,0.48658,3331.2,3331.1,0.48658]
[1762476557062,0.4866,3331.1,3331.0,0.4866]
[1762476557255,3.2078,3331.3,3330.6,0.27068]
[1762476557451,3.2078,3330.9,3330.5,0.00383939]
[1762476557650,0.48666,3330.6,3330.5,0.49051939]
[1762476557854,0.48666,3330.6,3330.5,0.00383939]
[1762476558758,0.48666,3330.7,3330.6,0.48665]
[1762476559256,3.32790001,3330.9,3330.5,0.00383939]
[1762476559458,0.48664,3330.8,3330.5,0.00383939]
[1762476559854,0.48666,3330.6,3330.5,0.00383939]
[1762476560060,0.72979,3330.4,3330.3,0.00450383]
[1762476560251,3.93759,3330.4,3330.3,0.00450383]
[1762476560559,4.05769001,3330.4,3330.3,0.00450383]
[1762476560759,3.57100001,3330.4,3330.3,0.00450383]
[1762476560950,3.2078,3330.4,3330.3,0.00450383]
[1762476561157,0.48669,3330.4,3330.3,0.4948393]
[1762476561457,0.48669,3330.4,3330.3,0.0081293]
[1762476561656,3.81458001,3330.6,3330.3,0.4948393]
[1762476561859,0.48665,3330.7,3330.5,0.48667]
[1762476562059,3.2078,3331.1,3330.3,0.0081293]
[1762476562254,0.48668,3330.5,3330.3,0.0081293]
[1762476562454,0.4867,3330.5,3330.4,0.4867]
[1762476563261,0.4867,3330.4,3330.3,0.0081293]
[1762476563560,0.7298,3330.4,3330.3,0.0081293]
[1762476564263,0.84990001,3330.4,3330.3,0.0081293]
[1762476565459,0.36320001,3330.4,3330.3,0.0081293]
[1762476565662,0.84990001,3330.4,3330.3,0.0081293]
[1762476566160,0.4867,3330.5,3330.4,0.48668]
[1762476566362,0.7298,3330.4,3330.3,0.0081293]
[1762476566858,0.84990001,3330.4,3330.3,0.0081293]
[1762476567556,3.2078,3330.6,3330.5,0.48668]
[1762476568167,3.2078,3330.6,3330.3,0.0081293]
[1762476568352,0.48669,3330.5,3330.3,0.0081293]
[1762476568554,3.69447,3330.6,3330.5,0.48668]
[1762476568960,0.48668,3330.5,3330.4,0.48668]
[1762476569161,0.4867,3330.4,3330.3,0.4948393]
[1762476569464,3.2078,3330.6,3330.4,0.48669]
[1762476569762,0.48668,3330.5,3330.4,0.48669]
[1762476570159,0.7298,3330.4,3330.3,0.0081293]
[1762476571763,0.2431,3330.4,3330.3,0.4948393]
[1762476572169,0.7298,3330.4,3330.3,0.0081293]
[1762476572972,0.7298,3330.4,3330.3,0.4948393]
[1762476573167,0.7298,3330.4,3330.3,0.0081293]
[1762476573767,0.7298,3330.4,3330.3,2.93e-05]
[1762476573969,0.84990001,3330.4,3330.3,2.93e-05]
[1762476574466,0.48683,3329.5,3329.4,3.69464]
[1762476574667,0.48682,3329.6,3329.5,0.48681]
[1762476575168,0.72256,3329.3,3329.2,0.00450383]
[1762476575367,0.72530612,3329.3,3329.2,0.00765283]
[1762476575563,0.48960612,3329.3,3329.2,0.00765283]
[1762476575869,3.93310612,3329.3,3329.2,0.00765283]
[1762476576473,0.23844612,3329.3,3329.2,0.49452283]
[1762476576668,3.2078,3329.7,3329.6,0.48681]
[1762476576976,0.49125013,3329.9,3329.8,0.72129]
[1762476577471,0.00448013,3329.9,3329.4,3.3521]
[1762476577671,0.4868,3329.7,3329.4,3.2078]
[1762476577872,0.48679,3329.8,3329.7,0.48679]
[1762476578171,0.0075797,3329.9,3329.3,0.60698]
[1762476578376,3.2078,3329.8,3329.3,0.12014]
[1762476578579,3.2078,3329.8,3329.2,0.00765283]
[1762476578876,0.48685,3329.4,3329.3,0.48684]
[1762476579072,0.48685,3329.4,3329.2,0.00765283]
[1762476579073,0.71686,3329.3,3329.2,0.49452283]
[1762476579274,0.71686,3329.3,3329.2,0.00765283]
[1762476579468,0.12014,3329.6,3329.4,0.48684]
[1762476579674,3.2078,3329.8,3329.4,0.48684]
[1762476579977,3.32794,3329.8,3329.4,0.48684]
[1762476580176,0.48682,3329.6,3329.5,0.48681]
[1762476580577,0.4868,3329.8,3329.3,0.12014]
[1762476580877,0.4868,3329.7,3329.4,0.1421]
[1762476581080,0.0075797,3329.9,3329.3,0.12014]
[1762476581270,0.0075797,3329.9,3329.2,3.21545283]
[1762476581271,0.0075797,3329.9,3329.8,0.48679]
[1762476581467,0.0075797,3329.9,3329.8,0.72039]
[1762476581877,0.0075797,3329.9,3329.8,8.72039]
[1762476582378,0.0075797,3329.9,3329.6,5.34624864]
[1762476582379,0.2375797,3329.9,3329.6,3.2078]
[1762476582680,0.0075797,3329.9,3329.8,0.72039]
[1762476583477,0.0075797,3329.9,3329.8,0.84051]
[1762476583983,0.0075797,3329.9,3329.8,0.72039]
[1762476584482,0.4943497,3329.9,3329.6,5.34624864]
[1762476584874,0.4943497,3329.9,3329.8,0.48679]
[1762476584875,0.0075797,3329.9,3329.8,0.48679]
[1762476585373,0.4943497,3329.9,3329.8,0.48679]
[1762476585573,0.0075797,3329.9,3329.8,0.48679]
[1762476586780,0.4943497,3329.9,3329.8,0.48679]
[1762476587089,0.4868,3329.7,3329.6,5.34624864]
[1762476587283,0.4868,3329.7,3329.6,3.69461]
[1762476587483,0.4943597,3329.9,3329.8,0.48679]
[1762476587883,0.7168,3329.7,3329.6,3.2078]
[1762476588181,0.48679,3329.8,3329.7,0.4868]
[1762476588377,0.0075797,3329.9,3329.8,0.48679]
[1762476588579,0.0075797,3329.9,3329.8,0.72039]
[1762476590786,0.0075797,3329.9,3329.8,2.86316897]
[1762476591780,3.2078,3331.1,3330.0,0.1421]
[1762476592084,3.6944,3331.1,3331.0,0.48661]
[1762476592284,3.81450001,3331.1,3331.0,0.48661]
[1762476592682,0.48664,3330.9,3330.8,0.48663]
[1762476592881,0.23,3330.7,3330.6,0.48665]
[1762476593187,3.3308449,3331.1,3330.7,0.48665]
[1762476593383,0.48665,3330.8,3330.7,0.48665]
[1762476593578,0.48663,3331.0,3330.9,0.48662]
[1762476593775,3.3308449,3331.1,3330.7,0.48665]
[1762476593776,0.48665,3330.8,3330.7,0.48665]
[1762476593980,0.48664,3330.9,3330.8,0.48664]
[1762476594178,0.71668,3330.5,3330.3,2.14197052]
[1762476594379,0.1445,3330.6,3330.1,3.2078]
[1762476594380,0.23,3330.2,3330.1,3.2078]
[1762476594590,0.71673,3330.2,3330.1,3.2078]
[1762476594783,0.48676,3330.0,3329.9,2.14197052]
[1762476594987,0.48676,3330.0,3329.9,0.48677]
[1762476595187,3.2078,3330.3,3330.0,0.48675]
[1762476595481,0.48677,3329.9,3329.8,2.14197052]
[1762476595787,0.48681,3329.7,3329.6,0.48681]
[1762476595981,0.1445,3330.0,3329.6,0.48681]
[1762476596182,0.1445,3330.0,3329.5,3.2078]
[1762476596384,0.48679,3329.8,3329.7,0.48678]
[1762476596981,0.48681,3329.6,3329.5,3.2078]
[1762476597180,0.71681,3329.6,3329.5,3.2078]
[1762476597385,0.71686,3329.3,3329.2,0.00765283]
[1762476597583,3.92466,3329.3,3329.2,0.00765283]
[1762476597883,0.12014,3329.5,3329.3,0.48686]
[1762476598184,0.48683,3329.5,3329.2,0.00765283]
[1762476598387,0.48684,3329.4,3329.3,0.48686]
[1762476598783,0.12014,3329.5,3329.2,0.00765283]
[1762476598982,0.48684,3329.5,3329.4,0.48684]
[1762476599178,0.48686,3329.3,3329.2,0.00765283]
[1762476600185,0.48685,3329.4,3329.2,0.49452283]
[1762476600383,3.2078,3329.8,3329.4,0.48684]
[1762476600691,0.48686,3329.4,3329.3,0.48686]
[1762476600890,0.23,3329.6,3329.5,0.48683]
[1762476601082,0.71681,3329.6,3329.5,0.48683]
[1762476601386,0.12014,3329.7,3329.6,0.48681]
[1762476601684,0.71696,3328.6,3328.5,2.26211052]
[1762476601884,0.48698,3328.5,3328.4,0.48699]
[1762476602084,0.48698,3328.5,3328.3,5.34977052]
[1762476602287,0.23,3328.2,3328.1,2.62900052]
[1762476602483,3.2078,3329.0,3328.2,0.1421]
[1762476602787,0.48694,3328.8,3328.7,0.48694]
[1762476603191,0.48696,3328.6,3328.4,0.48699]
[1762476603380,0.1445,3328.8,3328.3,0.00450383]
[1762476603576,0.48693,3328.8,3328.3,3.21230383]
[1762476603785,0.12466383,3328.9,3328.3,3.21230383]
[1762476603993,0.49143383,3328.9,3328.5,0.48697]
[1762476604186,0.48693,3328.8,3328.6,0.48696]
[1762476604879,0.48699,3328.5,3328.3,0.00450383]
[1762476605085,0.2401,3328.5,3328.4,0.48699]
[1762476605391,0.48699,3328.4,3328.3,0.00450383]
[1762476605591,0.36028,3328.7,3328.6,0.48696]
[1762476605787,3.21230383,3328.9,3328.6,0.48696]
[1762476605788,0.00450383,3328.9,3328.8,0.88753]
[1762476605989,0.00450383,3328.9,3328.8,0.74053]
[1762476607288,0.48698,3328.5,3328.3,0.00450383]
[1762476607495,0.2401,3328.4,3328.3,0.00450383]
[1762476608389,0.72709,3328.4,3328.3,0.00450383]
[1762476608589,0.84727,3328.4,3328.3,0.00450383]
[1762476608790,0.36028,3328.4,3328.3,0.00450383]
[1762476608991,0.00450383,3328.9,3328.7,0.48695]
[1762476609491,0.00450383,3328.9,3328.8,0.48693]
[1762476609691,0.00450383,3328.9,3328.8,0.74053]
[1762476609893,0.49142383,3328.9,3328.8,0.74053]
[1762476610095,0.00450383,3328.9,3328.8,0.74053]
[1762476610889,0.72709,3328.4,3328.3,0.00450383]
[1762476611085,0.1476,3328.8,3328.3,0.00450383]
[1762476611285,0.48698,3328.6,3328.5,0.48697]
[1762476611890,0.12466383,3328.9,3328.6,0.48696]
[1762476612089,0.1476,3328.8,3328.3,0.00450383]
[1762476612292,0.1476,3328.8,3327.7,3.2078]
[1762476612293,0.2401,3327.9,3327.7,3.2078]
[1762476612490,0.26778,3328.8,3325.5,11.66803926]
[1762476612491,0.48716,3327.3,3327.0,2.14197052]
[1762476612688,0.72731,3326.9,3326.8,0.1202]
[1762476612894,0.72736,3326.6,3326.5,0.48726]
[1762476613092,0.48728,3326.5,3326.3,0.60752999]
[1762476613392,0.00289484,3326.5,3326.3,0.00237885]
[1762476613592,0.48729,3326.4,3326.3,0.48966885]
[1762476613795,0.72739,3326.4,3326.3,0.00237885]
[1762476614093,0.87499,3326.4,3326.3,0.00237885]
[1762476614294,0.72741,3326.2,3326.1,0.00450383]
[1762476614794,0.1476,3326.4,3326.1,0.00450383]
[1762476614997,0.1476,3326.4,3326.2,0.48731]
[1762476615191,0.12315484,3326.5,3326.3,0.48729]
[1762476615391,0.12315484,3326.5,3326.3,0.49072382]
[1762476615592,0.61042484,3326.5,3326.3,0.00343382]
[1762476615797,0.12315484,3326.5,3326.3,0.00343382]
[1762476615992,0.61042484,3326.5,3326.3,0.49072382]
[1762476616300,0.12315484,3326.5,3326.3,0.49072382]
[1762476616893,0.12315484,3326.5,3326.3,0.00343382]
[1762476616894,0.61042484,3326.5,3326.3,0.00343382]
[1762476617596,0.61042484,3326.5,3326.3,0.49072382]
[1762476617993,0.2401,3326.4,3326.3,0.49072382]
[1762476618193,0.3877,3326.4,3326.3,0.00343382]
[1762476619398,0.12315484,3326.5,3326.4,0.48728]
[1762476619894,0.12315484,3326.5,3326.4,0.88788]
[1762476620089,0.12315484,3326.5,3326.4,4.09568]
[1762476620288,0.12315484,3326.5,3326.4,3.2078]
[1762476620494,0.12315484,3326.5,3326.4,0.2536]
[1762476620794,0.12315484,3326.5,3326.4,8.4006]
[1762476621101,0.00450383,3326.7,3326.6,0.2536]
[1762476621296,0.00450383,3326.7,3326.6,3.4614]
[1762476621501,0.48711,3327.6,3327.5,0.48712]
[1762476621703,3.2078,3327.8,3327.1,3.2078]
[1762476621897,3.69488,3327.8,3327.6,0.4871]
[1762476622199,0.72726,3327.2,3327.1,3.2078]
[1762476622397,0.48727,3326.5,3326.3,0.49072382]
[1762476622591,0.48727,3326.5,3326.3,0.00343382]
[1762476622899,0.3877,3326.4,3326.3,0.00343382]
[1762476623094,0.48735,3325.9,3325.4,3.2078]
[1762476623303,0.3877,3325.8,3325.4,3.69522]
[1762476623500,0.3877,3325.8,3325.0,3.2078]
[1762476623799,0.48747,3325.1,3325.0,3.2078]
[1762476624102,0.48751,3324.9,3324.7,0.49204074]
[1762476624302,0.00362332,3325.1,3325.0,0.74108]
[1762476624505,3.21231074,3325.4,3325.0,0.74108]
[1762476624506,0.00221234,3325.4,3325.3,0.74104]
[1762476624895,0.1476,3326.4,3326.0,0.48733]
[1762476625105,0.48731,3326.2,3326.0,0.48733]
[1762476625292,0.1476,3326.4,3325.8,3.69516]
[1762476625494,0.15128643,3326.4,3325.8,3.69516]
[1762476625696,0.48734,3326.0,3325.8,3.2078]
[1762476628197,0.2401,3325.9,3325.8,3.2078]
[1762476628398,0.48733,3326.1,3325.9,0.48735]
[1762476629203,0.00451074,3326.2,3326.0,0.48732]
[1762476629593,0.00451074,3326.2,3326.1,0.2536]
[1762476629900,0.00368643,3326.4,3326.3,0.2536]
[1762476630202,0.00368643,3326.4,3326.3,3.4614]
[1762476631103,0.00368643,3326.4,3326.3,11.4614]
[1762476631408,3.3554,3327.6,3327.1,0.48717]
[1762476631703,3.69492,3327.6,3327.4,0.48712]
[1762476631903,0.48713,3327.4,3327.3,3.2078]
[1762476632204,0.48712,3327.6,3327.4,0.48713]
[1762476632402,0.49083398,3327.6,3327.4,0.48713]
[1762476633005,0.00371398,3327.6,3327.4,0.48713]
[1762476633908,0.00371398,3327.6,3327.5,0.2536]
[1762476635306,0.48712,3327.5,3327.3,0.4907922]
[1762476635808,0.48712,3327.5,3327.4,0.48713]
[1762476636012,0.48713,3327.4,3327.3,0.0036422]
[1762476636210,0.48713,3327.4,3327.3,0.4907922]
[1762476636803,0.00371398,3327.6,3327.3,0.0036422]
[1762476637506,0.49081398,3327.6,3327.5,0.48712]
[1762476638314,0.00371398,3327.6,3327.3,0.4907722]
[1762476638507,0.48712,3327.5,3327.4,0.48713]
[1762476638706,0.00371398,3327.6,3327.5,0.48712]
[1762476639212,0.49081398,3327.6,3327.5,0.48712]
[1762476639617,0.00371398,3327.6,3327.5,0.48712]
[1762476639811,0.00371398,3327.6,3327.5,0.73922]
[1762476642716,3.2078,3328.4,3328.3,0.7335]
[1762476642913,14.111,3329.2,3327.6,0.1389]
[1762476642914,0.48698,3328.5,3328.4,0.48697]
[1762476643216,0.48701,3328.3,3328.2,0.7335]
[1762476643817,0.49024836,3328.3,3328.2,0.7335]
[1762476644716,0.00323836,3328.3,3328.2,0.7335]
[1762476645214,0.49023836,3328.3,3328.2,0.7335]
[1762476645421,0.00323836,3328.3,3328.2,0.8724]
[1762476646012,0.25213836,3328.3,3328.0,3.2078]
[1762476646310,0.00323836,3328.3,3328.2,0.48702]
[1762476646510,0.00323836,3328.3,3328.2,0.73352]
[1762476646926,0.00323836,3328.3,3328.2,0.87242]
[1762476647624,3.3554,3330.0,3329.5,0.48682]
[1762476647820,3.3554,3330.0,3329.6,0.48681]
[1762476647821,0.48681,3329.7,3329.6,0.48681]
[1762476648326,0.48672,3330.2,3329.6,3.2078]
[1762476648522,0.00317327,3330.2,3330.1,0.48674]
[1762476648827,0.00317327,3330.2,3330.1,0.489564]
[1762476650019,0.25207327,3330.2,3330.1,0.002824]
[1762476650220,3.45987327,3330.2,3330.1,0.002824]
[1762476651329,0.00317327,3330.2,3330.1,0.002824]
[1762476652228,0.25207327,3330.2,3330.1,0.002824]
[1762476652428,0.00317327,3330.2,3330.1,0.736064]
[1762476653320,0.00317327,3330.2,3330.1,0.002824]
[1762476654319,0.48989327,3330.2,3330.1,0.002824]
[1762476655025,0.73879327,3330.2,3330.1,0.002824]
[1762476656634,0.48989327,3330.2,3330.1,0.002824]
[1762476657234,0.73879327,3330.2,3330.1,0.002824]
[1762476657732,1.22014125,3332.0,3330.1,0.002824]
[1762476657733,1.22014125,3332.0,3330.1,6.008424]
[1762476657931,1.22014125,3332.0,3330.6,0.137]
[1762476657932,0.1373,3332.0,3330.6,0.137]
[1762476658125,0.48653,3331.6,3331.0,0.4866]
[1762476658331,0.48652,3331.6,3331.0,0.00450362]
[1762476658530,0.1373,3331.2,3331.0,0.00450362]
[1762476658722,0.13955809,3331.2,3331.0,0.49110362]
[1762476659525,0.62613809,3331.2,3331.0,0.00450362]
[1762476660836,0.2489,3331.1,3331.0,0.00450362]
[1762476663346,0.73549,3331.1,3331.0,0.00450362]
[1762476663541,0.13955809,3331.2,3330.2,3.2078]
[1762476663738,0.73563,3330.2,3330.1,0.002824]
[1762476664540,0.3787,3329.4,3329.3,0.48686]
[1762476664740,0.48688,3329.2,3329.0,3.2078]
[1762476664941,0.62446,3329.4,3329.2,0.48686]
[1762476665648,0.62446,3329.4,3329.2,0.4900146]
[1762476666838,0.1376,3329.4,3329.2,0.4900146]
[1762476667038,0.62444,3329.4,3329.2,0.0031546]
[1762476667946,0.2411,3329.3,3329.2,0.0031546]
[1762476668144,0.1376,3329.4,3329.2,0.0031546]
[1762476668441,0.48686,3329.3,3329.2,0.0031546]
[1762476669236,0.48686,3329.3,3329.2,0.4900246]
[1762476669434,0.48686,3329.3,3329.2,0.0031546]
[1762476670142,0.72796,3329.3,3329.2,0.4900246]
[1762476670746,0.48677,3329.9,3329.8,0.48678]
[1762476671744,0.48677,3329.9,3329.4,3.2078]
[1762476671947,0.48686,3329.3,3329.2,0.4900246]
[1762476672147,0.3787,3329.4,3329.3,0.48686]
[1762476672442,0.48686,3329.3,3329.2,0.0031546]
[1762476672645,0.72796,3329.3,3329.2,0.0031546]
[1762476673042,0.72796,3329.3,3329.2,0.4900246]
[1762476673243,0.72796,3329.3,3329.2,0.0031546]
[1762476673541,0.1376,3329.4,3329.2,0.0031546]
[1762476673740,0.72796,3329.3,3329.2,0.0031546]
[1762476674348,0.72799,3329.1,3329.0,0.00450362]
[1762476674843,3.3454,3329.4,3329.2,0.48687]
[1762476675046,0.48687,3329.3,3329.2,0.48687]
[1762476675446,0.48687,3329.3,3329.2,0.00226496]
[1762476675748,0.72797,3329.3,3329.2,0.00226496]
[1762476677751,0.72796,3329.3,3329.2,0.48913496]
[1762476677953,0.62444,3329.4,3329.3,0.48686]
[1762476678149,3.2078,3329.9,3329.3,0.48686]
[1762476678346,3.2078,3329.9,3329.2,0.00226496]
[1762476678550,0.72796,3329.3,3329.2,0.00226496]
[1762476679556,0.72807,3328.5,3328.4,3.2078]
[1762476679758,0.72807,3328.5,3328.4,3.69479]
[1762476680248,0.2411,3328.5,3328.4,3.2078]
[1762476680450,0.1376,3328.8,3328.5,0.48697]
[1762476680753,0.72807,3328.5,3328.4,3.21143536]
[1762476681353,0.72807,3328.5,3328.4,0.00363536]
[1762476682546,0.00807242,3328.8,3328.7,0.72385]
[1762476682857,0.1376,3330.0,3329.0,0.074]
[1762476683050,0.1376,3329.5,3329.0,3.2078]
[1762476683246,0.48686,3329.3,3329.1,0.48688]
[1762476683854,0.49040309,3329.3,3329.1,0.48688]
[1762476684159,0.48689,3329.1,3329.0,3.2078]
[1762476684355,0.72799,3329.1,3329.0,3.2078]
[1762476684656,0.00354309,3329.3,3329.0,3.2078]
[1762476684657,0.48687,3329.2,3329.0,3.2078]
[1762476685451,0.48697,3328.6,3328.4,3.69842536]
[1762476687557,0.2411,3328.5,3328.4,3.21143536]
[1762476687757,0.2411,3328.5,3328.4,0.00363536]
[1762476688263,0.48697,3328.6,3328.4,0.49061536]
[1762476688561,0.2411,3328.5,3328.4,0.00363536]
[1762476688957,0.1376,3328.8,3328.4,0.00363536]
[1762476689161,0.48689,3329.1,3328.9,0.48691]
[1762476689466,0.4869,3329.0,3328.9,0.48691]
[1762476689759,0.00354309,3329.3,3329.0,0.48689]
[1762476689961,0.00354309,3329.3,3328.4,3.21143536]
[1762476690159,0.00354309,3329.3,3329.1,0.48688]
[1762476690358,0.00354309,3329.3,3328.4,5.35668531]
[1762476690551,0.00354309,3329.3,3328.9,0.48691]
[1762476690861,0.72802,3329.0,3328.9,0.48692]
[1762476691060,0.48692,3328.9,3328.8,0.48693]
[1762476691662,0.00354309,3329.3,3328.5,2.14524995]
[1762476692068,0.48693,3328.8,3328.5,2.14524995]
[1762476692259,0.48691,3329.0,3328.9,0.48691]
[1762476693664,0.62451,3329.0,3328.9,0.48691]
[1762476694262,0.1376,3329.0,3328.9,0.48691]
[1762476694464,0.4869,3329.0,3328.9,0.48692]
[1762476695869,0.71902,3328.9,3328.8,5.35304995]
[1762476696064,0.86707,3328.5,3328.4,3.21143536]
[1762476696263,0.00354309,3329.3,3328.4,3.21143536]
[1762476696564,0.00354309,3329.3,3329.2,0.48687]
[1762476697666,0.4869,3329.2,3329.1,0.48688]
[1762476697867,0.73042,3328.9,3328.8,5.36119173]
[1762476698067,0.1403,3329.0,3328.9,0.48692]
[1762476698468,0.6272,3329.0,3328.9,0.48692]
[1762476699370,0.73042,3328.9,3328.8,5.36119173]
[1762476699572,0.73042,3328.9,3328.8,2.15339173]
[1762476699772,0.73042,3328.9,3328.8,0.48693]
[1762476700066,0.62721,3329.0,3328.9,0.48692]
[1762476700470,0.6272,3329.0,3328.9,0.48692]
[1762476701476,0.73043,3328.8,3328.7,0.48694]
[1762476701969,0.48693,3328.8,3328.7,0.48694]
[1762476702173,0.62722,3329.0,3328.9,0.48692]
[1762476702665,0.00354309,3329.3,3329.2,0.48687]
[1762476703271,0.48689,3329.1,3329.0,0.72379]
[1762476703665,0.00354309,3329.3,3329.2,0.72377]
[1762476704570,0.49041309,3329.3,3329.2,0.48687]
[1762476704771,0.00354309,3329.3,3329.0,2.15339173]
[1762476704971,0.48687,3329.2,3329.1,0.72377]
[1762476705268,0.00354309,3329.3,3329.2,0.72377]
[1762476705871,0.00354309,3329.3,3329.1,5.36119173]
[1762476706071,0.48687,3329.2,3329.1,5.36119173]
[1762476706375,0.73037,3329.2,3329.1,3.2078]
[1762476708274,0.73037,3329.2,3328.7,0.48693]
[1762476708275,0.48693,3328.8,3328.7,2.64033173]
[1762476708474,0.48693,3328.8,3328.7,0.48694]
[1762476708676,0.48692,3328.9,3328.8,0.48692]
[1762476709877,0.48692,3328.9,3328.8,0.72382]
[1762476710576,0.48693,3328.8,3328.7,2.15339173]
[1762476710776,0.73043,3328.8,3328.7,2.15339173]
[1762476710978,0.1403,3329.0,3328.6,5.84815173]
[1762476710979,0.48694,3328.7,3328.6,5.84815173]
[1762476712180,0.48694,3328.7,3328.6,3.69476]
[1762476712373,0.73044,3328.7,3328.6,3.2078]
[1762476712577,0.7305,3328.3,3328.2,2.15630946]
[1762476712879,0.73052,3328.2,3327.9,2.15630946]
[1762476713073,0.73059,3327.7,3327.6,2.15630946]
[1762476713271,0.73061,3327.6,3327.5,2.15630946]
[1762476713577,0.73061,3327.6,3327.5,0.00313842]
[1762476713981,0.94581494,3327.6,3327.5,0.00313842]
[1762476718682,0.73074,3326.7,3326.5,2.15630946]
[1762476718982,0.45870494,3326.7,3326.6,3.69505]
[1762476719174,0.48722,3326.8,3326.7,0.48724]
[1762476719374,0.48724,3326.7,3326.6,3.69505]
[1762476719574,0.49015932,3326.7,3326.6,3.69751036]
[1762476719775,0.00291932,3326.7,3326.6,3.69751036]
[1762476720382,0.00291932,3326.7,3326.6,3.93441036]
[1762476720578,3.837,3328.2,3326.6,3.93441036]
[1762476720579,3.2078,3328.1,3327.7,0.48709]
[1762476720781,3.3481,3328.5,3328.4,0.48699]
[1762476721079,3.3481,3328.5,3328.0,3.2078]
[1762476721080,0.21520494,3328.1,3328.0,3.2078]
[1762476721288,0.21520494,3328.1,3327.0,3.2078]
[1762476721289,0.73065,3327.3,3327.0,3.2078]
[1762476721582,0.00301462,3327.3,3327.0,3.4447]
[1762476721778,0.00301462,3327.3,3327.1,0.48718]
[1762476721980,0.48716,3327.2,3327.0,3.2078]
[1762476722685,0.48717,3327.2,3327.0,3.2078]
[1762476722877,0.45870494,3327.1,3327.0,3.2078]
[1762476723480,0.48719,3327.0,3326.8,0.49172362]
[1762476723677,0.35550494,3327.0,3326.8,3.69952362]
[1762476723984,0.84270494,3327.0,3326.8,3.69952362]
[1762476724182,0.00301462,3327.3,3327.1,0.48718]
[1762476724387,0.00301462,3327.3,3327.2,3.4447]
[1762476725485,3.69485,3328.0,3327.9,0.73376]
[1762476725790,3.2078,3328.4,3328.1,0.48703]
[1762476725985,0.48708,3327.8,3327.6,3.2078]
[1762476726286,3.2078,3328.4,3327.3,0.48715]
[1762476726287,0.1459,3327.5,3327.3,0.48715]
[1762476726489,0.1459,3327.5,3327.2,3.2078]
[1762476726490,0.72425,3327.3,3327.2,3.2078]
[1762476726688,0.93945494,3327.3,3327.2,3.2078]
[1762476726984,0.93945494,3327.3,3326.8,0.00450362]
[1762476726985,0.1459,3327.0,3326.8,0.49171362]
[1762476727193,0.48718,3327.1,3327.0,0.48718]
[1762476727384,0.48719,3327.0,3326.8,0.49172362]
[1762476727687,0.70239494,3327.0,3326.8,0.49172362]
[1762476727888,0.48719,3327.0,3326.9,0.48721]
[1762476728082,0.48712,3327.5,3327.4,0.2467]
[1762476728287,0.48715,3327.3,3327.2,0.48716]
[1762476728484,0.48716,3327.2,3327.1,3.94168]
[1762476728884,0.1459,3327.5,3326.8,0.00450362]
[1762476729085,0.21520494,3327.4,3327.3,0.48715]
[1762476729493,0.1459,3327.5,3327.3,0.48715]
[1762476729695,0.48715,3327.3,3327.2,0.2467]
[1762476729993,0.00448913,3327.7,3327.1,3.2078]
[1762476729994,0.48714,3327.4,3327.3,0.48714]
[1762476730379,0.48712,3327.6,3327.4,0.48712]
[1762476730583,0.70232494,3327.5,3327.1,3.2078]
[1762476730989,0.21520494,3327.8,3327.2,2.149442]
[1762476731286,0.72431,3326.9,3326.8,0.00450362]
[1762476731491,0.72434,3326.7,3326.6,0.00246036]
[1762476731692,0.48734,3326.0,3325.9,3.2078]
[1762476732582,0.49064915,3326.0,3325.9,3.21083281]
[1762476733490,0.00330915,3326.0,3325.9,3.21083281]
[1762476734094,0.45561409,3326.0,3325.9,0.00303281]
[1762476735487,0.60151409,3326.0,3325.9,0.00303281]
[1762476737089,0.00330915,3326.0,3325.9,0.00303281]
[1762476737290,0.00330915,3326.0,3325.9,0.24973281]
[1762476737692,0.00330915,3326.0,3325.9,0.00303281]
[1762476737693,0.60151409,3326.0,3325.9,0.00303281]
[1762476738495,0.00330915,3326.0,3325.9,0.00303281]
[1762476738692,0.00330915,3326.0,3325.9,0.24973281]
[1762476740294,0.49064915,3326.0,3325.9,0.73708281]
[1762476740803,0.49064915,3326.0,3325.9,0.24973281]
[1762476741505,0.49064915,3326.0,3325.9,0.73708281]
[1762476741708,0.00330915,3326.0,3325.9,0.73708281]
[1762476742909,3.69507,3326.5,3326.4,0.73398]
[1762476743205,3.3537,3327.0,3326.8,0.48722]
[1762476743401,0.48717,3327.2,3327.0,0.48719]
[1762476743605,0.48715,3327.3,3327.2,0.2467]
[1762476743801,0.21882672,3327.3,3327.2,0.73386]
[1762476744111,0.00362178,3327.3,3327.2,0.73386]
[1762476745810,0.00362178,3327.3,3327.2,3.94166]
[1762476746009,3.2078,3327.9,3327.8,0.2467]
[1762476746010,3.69486,3327.9,3327.8,0.2467]
[1762476746205,0.72421,3327.6,3327.5,0.00450362]